{"text_format":"1","workbook":"xlsx","n_sheets":1,"sheets":["Presupuesto Bb"],"not_rendered":{"charts":0,"images":1,"macros":1,"external_links":0,"defined_names":7,"comments":1,"pivot_tables":0},"unopened":[],"bounds":{"document_bytes":16777216,"sheet_cells":100000,"rows_first":2000,"rows_last":500,"rows_between":2000,"halvings":0,"cell_chars":16384,"cell_head_chars":4096},"cells_cut":0,"cells_raw":0,"read":"whole","date_system":"1900"}

{"sheet":"Presupuesto Bb","index":0,"n_rows":142,"n_cols":4,"rows_kept":142,"cut":false,"hidden":false,"merged":[[141,0,141,3],[137,0,137,3],[138,0,138,3],[139,0,139,3],[140,0,140,3],[134,0,134,3],[135,0,135,3],[136,0,136,3],[130,0,130,3],[131,0,131,3],[118,0,118,3],[119,0,119,3],[120,0,120,3],[121,0,121,3],[124,0,124,3],[0,2,0,3],[2,2,3,3],[4,2,4,3],[132,0,132,3],[133,0,133,3],[122,0,122,3],[123,0,123,3],[128,0,128,3],[129,0,129,3],[16,0,16,3],[5,2,5,3],[2,0,3,1],[1,2,1,3],[126,0,126,3],[127,0,127,3],[125,0,125,3]]}
[null,null,"Documento básico 3"]
[null,null,"Ámbito temático \"B\" INTERCOOPERACIÓN"]
["CONVOCATORIA 2025 DEL PROGRAMA DE SUBVENCIONES DEL AYUNTAMIENTO DE BARCELONA PARA EL FORTALECIMIENTO DE LA ECONOMIA SOCIAL Y SOLIDARIA Y PARA LA INTERCOOPERACIÓN EN LA ESTRATEGIA #ESSBCN2030 - ENFORTIM L’ESS 2025\n",null,"Modalidad \"Bb\": Acciones de intercooperación, para crear y/o fortalecer ecosistemas cooperativos y clústeres de ESS de la ciudd de Barcelona y para otras acciones de intercooperación promovidas por organizaciónes y empresas de la economía social y solidaria, vinculadas en cualquer caso, a la Estrategia #ESSBCN2030 y a los objetivos estratégicos del PIESS 2024-2027"]
[]
[null,null,"Atención: Rellenar las celdas en blanco y añadir las filas necesarias "]
[null,null,"Antes de rellenar, consultar anotaciones a pie de página"]
[]
["DATOS BÁSICOS"]
["Nombre de la persona jurídica"]
["NIF de la persona jurídica"]
["Título del proyecto subvencionable"]
["Importe total del proyecto subvencionable"]
["Importe imputable a la subvención municipal"]
["Importe de la aportación / Cofinanciación de la organización",{"$f":"B12-B13","v":0}]
["% del importe solicitado respecto al total del proyecto subvencionable",{"$f":"B13/B12","v":{"$error":"#DIV/0!"}},"* La cuantía de la subvención otorgada no superará el 80% del gasto total del proyecto a subvencionar"]
[]
["PREVISIÓN DE GASTOS DEL PROYECTO SUBVENCIONABLE"]
["Partidas","Importe imputable a la subvención municipal","Importe de la aportación / Cofinanciación de la organización","Importe total del proyecto"]
["D1. Nóminas y seguridad social IRPF (régimen general o socios/as cooperativistas en régimen de autónomos) del personal propio  vinculado al proyecto subvencionable (máximo 40% importe subvención)",{"$f":"SUM(B20:B23)","v":0},{"$f":"SUM(C20:C23)","v":0},{"$f":"SUM(DespesesProjecte[[#This Row],[Importe imputable a la subvención municipal]],DespesesProjecte[[#This Row],[Importe de la aportación / Cofinanciación de la organización]])","v":0}]
[null,null,null,{"$f":"SUM(DespesesProjecte[[#This Row],[Importe imputable a la subvención municipal]],DespesesProjecte[[#This Row],[Importe de la aportación / Cofinanciación de la organización]])","v":0}]
[null,null,null,{"$f":"SUM(DespesesProjecte[[#This Row],[Importe imputable a la subvención municipal]],DespesesProjecte[[#This Row],[Importe de la aportación / Cofinanciación de la organización]])","v":0}]
[null,null,null,{"$f":"SUM(DespesesProjecte[[#This Row],[Importe imputable a la subvención municipal]],DespesesProjecte[[#This Row],[Importe de la aportación / Cofinanciación de la organización]])","v":0}]
[null,null,null,{"$f":"SUM(DespesesProjecte[[#This Row],[Importe imputable a la subvención municipal]],DespesesProjecte[[#This Row],[Importe de la aportación / Cofinanciación de la organización]])","v":0}]
["D2. Nóminas y seguridad social de estudiantes en prácticas (con un límite del 80% de su sueldo bruto correspondiente al período de la ejecución de la subvención) - excepto si la seguridad social está bonificada",{"$f":"SUM(B25:B28)","v":0},{"$f":"SUM(C25:C28)","v":0},{"$f":"SUM(DespesesProjecte[[#This Row],[Importe imputable a la subvención municipal]],DespesesProjecte[[#This Row],[Importe de la aportación / Cofinanciación de la organización]])","v":0}]
[null,null,null,{"$f":"SUM(DespesesProjecte[[#This Row],[Importe imputable a la subvención municipal]],DespesesProjecte[[#This Row],[Importe de la aportación / Cofinanciación de la organización]])","v":0}]
[null,null,null,{"$f":"SUM(DespesesProjecte[[#This Row],[Importe imputable a la subvención municipal]],DespesesProjecte[[#This Row],[Importe de la aportación / Cofinanciación de la organización]])","v":0}]
[null,null,null,{"$f":"SUM(DespesesProjecte[[#This Row],[Importe imputable a la subvención municipal]],DespesesProjecte[[#This Row],[Importe de la aportación / Cofinanciación de la organización]])","v":0}]
[null,null,null,{"$f":"SUM(DespesesProjecte[[#This Row],[Importe imputable a la subvención municipal]],DespesesProjecte[[#This Row],[Importe de la aportación / Cofinanciación de la organización]])","v":0}]
["TOTAL DE GASTOS DEL PERSONAL\n",{"$f":"SUM(B19+B24)","v":0},{"$f":"SUM(C19+C24)","v":0},{"$f":"SUM(D19+D24)","v":0}]
["D3. Trabajos realizados por profesionales y empresas externas directamente vinculadas al proyecto",{"$f":"SUM(B31:B33)","v":0},{"$f":"SUM(C31:C33)","v":0},{"$f":"SUM(DespesesProjecte[[#This Row],[Importe imputable a la subvención municipal]],DespesesProjecte[[#This Row],[Importe de la aportación / Cofinanciación de la organización]])","v":0}]
[null,null,null,{"$f":"SUM(DespesesProjecte[[#This Row],[Importe imputable a la subvención municipal]],DespesesProjecte[[#This Row],[Importe de la aportación / Cofinanciación de la organización]])","v":0}]
[null,null,null,{"$f":"SUM(DespesesProjecte[[#This Row],[Importe imputable a la subvención municipal]],DespesesProjecte[[#This Row],[Importe de la aportación / Cofinanciación de la organización]])","v":0}]
[null,null,null,{"$f":"SUM(DespesesProjecte[[#This Row],[Importe imputable a la subvención municipal]],DespesesProjecte[[#This Row],[Importe de la aportación / Cofinanciación de la organización]])","v":0}]
["D4. Adquisición de materiales y bienes consumibles íntegramente imputables al proyecto",{"$f":"SUM(B35:B37)","v":0},{"$f":"SUM(C35:C37)","v":0},{"$f":"SUM(DespesesProjecte[[#This Row],[Importe imputable a la subvención municipal]],DespesesProjecte[[#This Row],[Importe de la aportación / Cofinanciación de la organización]])","v":0}]
[null,null,null,{"$f":"SUM(DespesesProjecte[[#This Row],[Importe imputable a la subvención municipal]],DespesesProjecte[[#This Row],[Importe de la aportación / Cofinanciación de la organización]])","v":0}]
[null,null,null,{"$f":"SUM(DespesesProjecte[[#This Row],[Importe imputable a la subvención municipal]],DespesesProjecte[[#This Row],[Importe de la aportación / Cofinanciación de la organización]])","v":0}]
[null,null,null,{"$f":"SUM(DespesesProjecte[[#This Row],[Importe imputable a la subvención municipal]],DespesesProjecte[[#This Row],[Importe de la aportación / Cofinanciación de la organización]])","v":0}]
["D5. Transporte – mensajería imputables al proyecto",{"$f":"SUM(B39:B41)","v":0},{"$f":"SUM(C39:C41)","v":0},{"$f":"DespesesProjecte[[#This Row],[Importe imputable a la subvención municipal]]+DespesesProjecte[[#This Row],[Importe de la aportación / Cofinanciación de la organización]]","v":0}]
[null,null,null,{"$f":"SUM(DespesesProjecte[[#This Row],[Importe imputable a la subvención municipal]],DespesesProjecte[[#This Row],[Importe de la aportación / Cofinanciación de la organización]])","v":0}]
[null,null,null,{"$f":"SUM(DespesesProjecte[[#This Row],[Importe imputable a la subvención municipal]],DespesesProjecte[[#This Row],[Importe de la aportación / Cofinanciación de la organización]])","v":0}]
[null,null,null,{"$f":"SUM(DespesesProjecte[[#This Row],[Importe imputable a la subvención municipal]],DespesesProjecte[[#This Row],[Importe de la aportación / Cofinanciación de la organización]])","v":0}]
["D6. Publicidad y propaganda de las actividades directamente vinculadas al proyecto",{"$f":"SUM(B43:B45)","v":0},{"$f":"SUM(C43:C45)","v":0},{"$f":"SUM(DespesesProjecte[[#This Row],[Importe imputable a la subvención municipal]],DespesesProjecte[[#This Row],[Importe de la aportación / Cofinanciación de la organización]])","v":0}]
[null,null,null,{"$f":"SUM(DespesesProjecte[[#This Row],[Importe imputable a la subvención municipal]],DespesesProjecte[[#This Row],[Importe de la aportación / Cofinanciación de la organización]])","v":0}]
[null,null,null,{"$f":"SUM(DespesesProjecte[[#This Row],[Importe imputable a la subvención municipal]],DespesesProjecte[[#This Row],[Importe de la aportación / Cofinanciación de la organización]])","v":0}]
[null,null,null,{"$f":"SUM(DespesesProjecte[[#This Row],[Importe imputable a la subvención municipal]],DespesesProjecte[[#This Row],[Importe de la aportación / Cofinanciación de la organización]])","v":0}]
["D7. Alojamiento y dietas, del personal contratante y voluntario, vinculados al proyecto",{"$f":"SUM(B47:B49)","v":0},{"$f":"SUM(C47:C49)","v":0},{"$f":"SUM(DespesesProjecte[[#This Row],[Importe imputable a la subvención municipal]],DespesesProjecte[[#This Row],[Importe de la aportación / Cofinanciación de la organización]])","v":0}]
[null,null,null,{"$f":"SUM(DespesesProjecte[[#This Row],[Importe imputable a la subvención municipal]],DespesesProjecte[[#This Row],[Importe de la aportación / Cofinanciación de la organización]])","v":0}]
[null,null,null,{"$f":"SUM(DespesesProjecte[[#This Row],[Importe imputable a la subvención municipal]],DespesesProjecte[[#This Row],[Importe de la aportación / Cofinanciación de la organización]])","v":0}]
[null,null,null,{"$f":"SUM(DespesesProjecte[[#This Row],[Importe imputable a la subvención municipal]],DespesesProjecte[[#This Row],[Importe de la aportación / Cofinanciación de la organización]])","v":0}]
["D8. Ayudas al transporte para los/las participantes de los proyectos en caso de que sea necesario de manera justificada",{"$f":"SUM(B51:B53)","v":0},{"$f":"SUM(C51:C53)","v":0},{"$f":"SUM(DespesesProjecte[[#This Row],[Importe imputable a la subvención municipal]],DespesesProjecte[[#This Row],[Importe de la aportación / Cofinanciación de la organización]])","v":0}]
[null,null,null,{"$f":"SUM(DespesesProjecte[[#This Row],[Importe imputable a la subvención municipal]],DespesesProjecte[[#This Row],[Importe de la aportación / Cofinanciación de la organización]])","v":0}]
[null,null,null,{"$f":"SUM(DespesesProjecte[[#This Row],[Importe imputable a la subvención municipal]],DespesesProjecte[[#This Row],[Importe de la aportación / Cofinanciación de la organización]])","v":0}]
[null,null,null,{"$f":"SUM(DespesesProjecte[[#This Row],[Importe imputable a la subvención municipal]],DespesesProjecte[[#This Row],[Importe de la aportación / Cofinanciación de la organización]])","v":0}]
["D9. Viajes y desplazamientos imputables a las actividades del proyecto",{"$f":"SUM(B55:B57)","v":0},{"$f":"SUM(C55:C57)","v":0},{"$f":"DespesesProjecte[[#This Row],[Importe imputable a la subvención municipal]]+DespesesProjecte[[#This Row],[Importe de la aportación / Cofinanciación de la organización]]","v":0}]
[null,null,null,{"$f":"SUM(DespesesProjecte[[#This Row],[Importe imputable a la subvención municipal]],DespesesProjecte[[#This Row],[Importe de la aportación / Cofinanciación de la organización]])","v":0}]
[null,null,null,{"$f":"SUM(DespesesProjecte[[#This Row],[Importe imputable a la subvención municipal]],DespesesProjecte[[#This Row],[Importe de la aportación / Cofinanciación de la organización]])","v":0}]
[null,null,null,{"$f":"SUM(DespesesProjecte[[#This Row],[Importe imputable a la subvención municipal]],DespesesProjecte[[#This Row],[Importe de la aportación / Cofinanciación de la organización]])","v":0}]
["D10. Tributos, cuando sean abonados directamente por la persona jurídica o física beneficiaria",{"$f":"SUM(B59:B61)","v":0},{"$f":"SUM(C59:C61)","v":0},{"$f":"DespesesProjecte[[#This Row],[Importe imputable a la subvención municipal]]+DespesesProjecte[[#This Row],[Importe de la aportación / Cofinanciación de la organización]]","v":0}]
[null,null,null,{"$f":"SUM(DespesesProjecte[[#This Row],[Importe imputable a la subvención municipal]],DespesesProjecte[[#This Row],[Importe de la aportación / Cofinanciación de la organización]])","v":0}]
[null,null,null,{"$f":"SUM(DespesesProjecte[[#This Row],[Importe imputable a la subvención municipal]],DespesesProjecte[[#This Row],[Importe de la aportación / Cofinanciación de la organización]])","v":0}]
[null,null,null,{"$f":"SUM(DespesesProjecte[[#This Row],[Importe imputable a la subvención municipal]],DespesesProjecte[[#This Row],[Importe de la aportación / Cofinanciación de la organización]])","v":0}]
["D11. Gastos del informe de auditoría (máximo 1.500€ subvención)",{"$f":"SUM(B63:B65)","v":0},{"$f":"SUM(C63:C65)","v":0},{"$f":"DespesesProjecte[[#This Row],[Importe imputable a la subvención municipal]]+DespesesProjecte[[#This Row],[Importe de la aportación / Cofinanciación de la organización]]","v":0}]
[null,null,null,{"$f":"SUM(DespesesProjecte[[#This Row],[Importe imputable a la subvención municipal]],DespesesProjecte[[#This Row],[Importe de la aportación / Cofinanciación de la organización]])","v":0}]
[null,null,null,{"$f":"SUM(DespesesProjecte[[#This Row],[Importe imputable a la subvención municipal]],DespesesProjecte[[#This Row],[Importe de la aportación / Cofinanciación de la organización]])","v":0}]
[null,null,null,{"$f":"SUM(DespesesProjecte[[#This Row],[Importe imputable a la subvención municipal]],DespesesProjecte[[#This Row],[Importe de la aportación / Cofinanciación de la organización]])","v":0}]
["D12. Otros gastos que de manera justificada y por la tipología del proyecto puedan imputarse directamente al proyecto",{"$f":"SUM(B67:B69)","v":0},{"$f":"SUM(C67:C69)","v":0},{"$f":"DespesesProjecte[[#This Row],[Importe imputable a la subvención municipal]]+DespesesProjecte[[#This Row],[Importe de la aportación / Cofinanciación de la organización]]","v":0}]
[null,null,null,{"$f":"SUM(DespesesProjecte[[#This Row],[Importe imputable a la subvención municipal]],DespesesProjecte[[#This Row],[Importe de la aportación / Cofinanciación de la organización]])","v":0}]
[null,null,null,{"$f":"SUM(DespesesProjecte[[#This Row],[Importe imputable a la subvención municipal]],DespesesProjecte[[#This Row],[Importe de la aportación / Cofinanciación de la organización]])","v":0}]
[null,null,null,{"$f":"SUM(DespesesProjecte[[#This Row],[Importe imputable a la subvención municipal]],DespesesProjecte[[#This Row],[Importe de la aportación / Cofinanciación de la organización]])","v":0}]
["TOTAL DE OTROS GASTOS DIRECTOS",{"$f":"B30+B34+B38+B42+B46+B50+B54+B58+B62+B66","v":0},{"$f":"C30+C34+C38+C42+C46+C50+C54+C58+C62+C66","v":0},{"$f":"D30+D34+D38+D42+D46+D50+D54+D58+D62+D66","v":0}]
["TOTAL GASTOS DIRECTOS  (aquellos que se identifican directamente con el proyecto subvencionable)",{"$f":"B29+B70","v":0},{"$f":"C29+C70","v":0},{"$f":"D29+D70","v":0}]
["I1. Personal de soporte al proyecto (nóminas y seguridad social)",{"$f":"SUM(B73:B75)","v":0},{"$f":"SUM(C73:C75)","v":0},{"$f":"SUM(DespesesProjecte[[#This Row],[Importe imputable a la subvención municipal]],DespesesProjecte[[#This Row],[Importe de la aportación / Cofinanciación de la organización]])","v":0}]
[null,null,null,{"$f":"SUM(DespesesProjecte[[#This Row],[Importe imputable a la subvención municipal]],DespesesProjecte[[#This Row],[Importe de la aportación / Cofinanciación de la organización]])","v":0}]
[null,null,null,{"$f":"SUM(DespesesProjecte[[#This Row],[Importe imputable a la subvención municipal]],DespesesProjecte[[#This Row],[Importe de la aportación / Cofinanciación de la organización]])","v":0}]
[null,null,null,{"$f":"SUM(DespesesProjecte[[#This Row],[Importe imputable a la subvención municipal]],DespesesProjecte[[#This Row],[Importe de la aportación / Cofinanciación de la organización]])","v":0}]
["I2. Seguros",{"$f":"SUM(B77:B79)","v":0},{"$f":"SUM(C77:C79)","v":0},{"$f":"SUM(DespesesProjecte[[#This Row],[Importe imputable a la subvención municipal]],DespesesProjecte[[#This Row],[Importe de la aportación / Cofinanciación de la organización]])","v":0}]
[null,null,null,{"$f":"SUM(DespesesProjecte[[#This Row],[Importe imputable a la subvención municipal]],DespesesProjecte[[#This Row],[Importe de la aportación / Cofinanciación de la organización]])","v":0}]
[null,null,null,{"$f":"SUM(DespesesProjecte[[#This Row],[Importe imputable a la subvención municipal]],DespesesProjecte[[#This Row],[Importe de la aportación / Cofinanciación de la organización]])","v":0}]
[null,null,null,{"$f":"SUM(DespesesProjecte[[#This Row],[Importe imputable a la subvención municipal]],DespesesProjecte[[#This Row],[Importe de la aportación / Cofinanciación de la organización]])","v":0}]
["I3. Amortización",{"$f":"SUM(B81:B83)","v":0},{"$f":"SUM(C81:C83)","v":0},{"$f":"SUM(DespesesProjecte[[#This Row],[Importe imputable a la subvención municipal]],DespesesProjecte[[#This Row],[Importe de la aportación / Cofinanciación de la organización]])","v":0}]
[null,null,null,{"$f":"SUM(DespesesProjecte[[#This Row],[Importe imputable a la subvención municipal]],DespesesProjecte[[#This Row],[Importe de la aportación / Cofinanciación de la organización]])","v":0}]
[null,null,null,{"$f":"SUM(DespesesProjecte[[#This Row],[Importe imputable a la subvención municipal]],DespesesProjecte[[#This Row],[Importe de la aportación / Cofinanciación de la organización]])","v":0}]
[null,null,null,{"$f":"SUM(DespesesProjecte[[#This Row],[Importe imputable a la subvención municipal]],DespesesProjecte[[#This Row],[Importe de la aportación / Cofinanciación de la organización]])","v":0}]
["I4. Alquiler de bienes inmuebles",{"$f":"SUM(B85:B87)","v":0},{"$f":"SUM(C85:C87)","v":0},{"$f":"SUM(DespesesProjecte[[#This Row],[Importe imputable a la subvención municipal]],DespesesProjecte[[#This Row],[Importe de la aportación / Cofinanciación de la organización]])","v":0}]
[null,null,null,{"$f":"SUM(DespesesProjecte[[#This Row],[Importe imputable a la subvención municipal]],DespesesProjecte[[#This Row],[Importe de la aportación / Cofinanciación de la organización]])","v":0}]
[null,null,null,{"$f":"SUM(DespesesProjecte[[#This Row],[Importe imputable a la subvención municipal]],DespesesProjecte[[#This Row],[Importe de la aportación / Cofinanciación de la organización]])","v":0}]
[null,null,null,{"$f":"SUM(DespesesProjecte[[#This Row],[Importe imputable a la subvención municipal]],DespesesProjecte[[#This Row],[Importe de la aportación / Cofinanciación de la organización]])","v":0}]
["I5. Adquisición de materiales y bienes consumibles parcialmente imputables al proyecto",{"$f":"SUM(B89:B91)","v":0},{"$f":"SUM(C89:C91)","v":0},{"$f":"SUM(DespesesProjecte[[#This Row],[Importe imputable a la subvención municipal]],DespesesProjecte[[#This Row],[Importe de la aportación / Cofinanciación de la organización]])","v":0}]
[null,null,null,{"$f":"SUM(DespesesProjecte[[#This Row],[Importe imputable a la subvención municipal]],DespesesProjecte[[#This Row],[Importe de la aportación / Cofinanciación de la organización]])","v":0}]
[null,null,null,{"$f":"SUM(DespesesProjecte[[#This Row],[Importe imputable a la subvención municipal]],DespesesProjecte[[#This Row],[Importe de la aportación / Cofinanciación de la organización]])","v":0}]
[null,null,null,{"$f":"SUM(DespesesProjecte[[#This Row],[Importe imputable a la subvención municipal]],DespesesProjecte[[#This Row],[Importe de la aportación / Cofinanciación de la organización]])","v":0}]
["I6. Mantenimiento de edificios y/o instalaciones",{"$f":"SUM(B93:B95)","v":0},{"$f":"SUM(C93:C95)","v":0},{"$f":"SUM(DespesesProjecte[[#This Row],[Importe imputable a la subvención municipal]],DespesesProjecte[[#This Row],[Importe de la aportación / Cofinanciación de la organización]])","v":0}]
[null,null,null,{"$f":"SUM(DespesesProjecte[[#This Row],[Importe imputable a la subvención municipal]],DespesesProjecte[[#This Row],[Importe de la aportación / Cofinanciación de la organización]])","v":0}]
[null,null,null,{"$f":"SUM(DespesesProjecte[[#This Row],[Importe imputable a la subvención municipal]],DespesesProjecte[[#This Row],[Importe de la aportación / Cofinanciación de la organización]])","v":0}]
[null,null,null,{"$f":"SUM(DespesesProjecte[[#This Row],[Importe imputable a la subvención municipal]],DespesesProjecte[[#This Row],[Importe de la aportación / Cofinanciación de la organización]])","v":0}]
["I7. Comunicaciones (teléfono, correos, conexión a internet)",{"$f":"SUM(B97:B99)","v":0},{"$f":"SUM(C97:C99)","v":0},{"$f":"SUM(DespesesProjecte[[#This Row],[Importe imputable a la subvención municipal]],DespesesProjecte[[#This Row],[Importe de la aportación / Cofinanciación de la organización]])","v":0}]
[null,null,null,{"$f":"SUM(DespesesProjecte[[#This Row],[Importe imputable a la subvención municipal]],DespesesProjecte[[#This Row],[Importe de la aportación / Cofinanciación de la organización]])","v":0}]
[null,null,null,{"$f":"SUM(DespesesProjecte[[#This Row],[Importe imputable a la subvención municipal]],DespesesProjecte[[#This Row],[Importe de la aportación / Cofinanciación de la organización]])","v":0}]
[null,null,null,{"$f":"SUM(DespesesProjecte[[#This Row],[Importe imputable a la subvención municipal]],DespesesProjecte[[#This Row],[Importe de la aportación / Cofinanciación de la organización]])","v":0}]
["I8. Gastos financieros",{"$f":"SUM(B101:B103)","v":0},{"$f":"SUM(C101:C103)","v":0},{"$f":"SUM(DespesesProjecte[[#This Row],[Importe imputable a la subvención municipal]],DespesesProjecte[[#This Row],[Importe de la aportación / Cofinanciación de la organización]])","v":0}]
[null,null,null,{"$f":"SUM(DespesesProjecte[[#This Row],[Importe imputable a la subvención municipal]],DespesesProjecte[[#This Row],[Importe de la aportación / Cofinanciación de la organización]])","v":0}]
[null,null,null,{"$f":"SUM(DespesesProjecte[[#This Row],[Importe imputable a la subvención municipal]],DespesesProjecte[[#This Row],[Importe de la aportación / Cofinanciación de la organización]])","v":0}]
[null,null,null,{"$f":"SUM(DespesesProjecte[[#This Row],[Importe imputable a la subvención municipal]],DespesesProjecte[[#This Row],[Importe de la aportación / Cofinanciación de la organización]])","v":0}]
["I9. Suministros",{"$f":"SUM(B105:B107)","v":0},{"$f":"SUM(C105:C107)","v":0},{"$f":"SUM(DespesesProjecte[[#This Row],[Importe imputable a la subvención municipal]],DespesesProjecte[[#This Row],[Importe de la aportación / Cofinanciación de la organización]])","v":0}]
[null,null,null,{"$f":"SUM(DespesesProjecte[[#This Row],[Importe imputable a la subvención municipal]],DespesesProjecte[[#This Row],[Importe de la aportación / Cofinanciación de la organización]])","v":0}]
[null,null,null,{"$f":"SUM(DespesesProjecte[[#This Row],[Importe imputable a la subvención municipal]],DespesesProjecte[[#This Row],[Importe de la aportación / Cofinanciación de la organización]])","v":0}]
[null,null,null,{"$f":"SUM(DespesesProjecte[[#This Row],[Importe imputable a la subvención municipal]],DespesesProjecte[[#This Row],[Importe de la aportación / Cofinanciación de la organización]])","v":0}]
["I10. Trabajo realizado por otras empresas, parcialmente imputables al proyecto (limpieza, seguridad...)",{"$f":"SUM(B109:B111)","v":0},{"$f":"SUM(C109:C111)","v":0},{"$f":"SUM(DespesesProjecte[[#This Row],[Importe imputable a la subvención municipal]],DespesesProjecte[[#This Row],[Importe de la aportación / Cofinanciación de la organización]])","v":0}]
[null,null,null,{"$f":"SUM(DespesesProjecte[[#This Row],[Importe imputable a la subvención municipal]],DespesesProjecte[[#This Row],[Importe de la aportación / Cofinanciación de la organización]])","v":0}]
[null,null,null,{"$f":"SUM(DespesesProjecte[[#This Row],[Importe imputable a la subvención municipal]],DespesesProjecte[[#This Row],[Importe de la aportación / Cofinanciación de la organización]])","v":0}]
[null,null,null,{"$f":"SUM(DespesesProjecte[[#This Row],[Importe imputable a la subvención municipal]],DespesesProjecte[[#This Row],[Importe de la aportación / Cofinanciación de la organización]])","v":0}]
["TOTAL GASTOS INDIRECTOS (se podrán asignar al proyecto subvencionable utilizando un porcentaje de asignación) - Máximo 10 % del importe imputable a la subvención municipal",{"$f":"SUM(B72,B76,B80,B84,B88,B92,B96,B100,B104,B108)","v":0},{"$f":"SUM(C72,C76,C80,C84,C88,C92,C96,C100,C104,C108)","v":0},{"$f":"SUM(D72,D76,D80,D84,D88,D92,D96,D100,D104,D108)","v":0}]
["TOTAL DE GASTOS PREVISTOS",{"$f":"SUM(B112,B71)","v":0},{"$f":"SUM(C112,C71)","v":0},{"$f":"SUM(D112,D71)","v":0}]
[]
[]
["Atención: En caso de persones jurídiques no firme este documento ahora.\nMás adelante firmará digitalmente este documento"]
[]
[]
["Modalidad Bb. Creación y/o fortalecimiento de ecosistemas cooperativos y clústeres de ESS mediante acciones de intercooperación, vinculadas a la Estrategia #ESSBCN2030 y a los objetivos estratégicos del PIESS 2024-2027"]
[" 1. La cuantía de la subvención otorgada no superará el 80% del gasto total del proyecto a subvencionar."]
[" 2. El importe máximo de subvención para esta modalidad Bb es 25.000€.\n"]
[" 3.  En el cas que la sol·licitud presentada sobrepassi l’import màxim, es considerarà com a import sol·licitat el màxim de l'establert a la convocatòria."]
[" 4. En el caso que la solicitud presentada sobrepase el importe máximo, se considerará como importe solicitado el máximo de lo establecido en la convocatoria."]
[" 5. Se limita con un máximo del 40% del importe de la subvención para gastos de personal propio asignado directamente al proyecto subvencionado (régimen general o socios/as cooperativistas en régimen de autónomos-), y un 80% para nóminas y seguredad social de estudiantes en prácticas (sueldo bruto correspondiente al período de ejecución de la subvención) - excepto si la seguredad social está bonificada."]
[" 6. En el caso de alquileres de inmuebles los gastos de alquiler se imputarán a los gastos indirectos con el límite establecido para estos gastos indirectos."]
[" 7. Para las subvenciones otorgadas por importe igual o superior a 20.000 € es necesario un informe de auditoría para la justificación. El importe de este informe se considera gasto subvencionable, con un límite máximo de 1.500€."]
[" 8. Son imputables en esta modalidad los gastos indirectos, detallados en el apartado 13.3. de las bases reguladoras; con un máximo del 10% del importe de la subvención.\nEl carácter subvencionable del gasto de amortización estará sujeto a las condiciones siguientes:\n> Que las subvenciones no hayan contribuido a la compra de los bienes.\n> Que la amortización se calcule de conformidad con las normas de contabilidad generalmente aceptadas.\n> Que el coste se refiera al periodo subvencionable.\n\n\n"]
[" 9. Cuando se deba hacer gastos de más de 15.000 €, sin IVA, en el caso de prestaciones de servicios o entrega de bienes y para aquellos gastos de más de 40.000 €,  sin IVA, en el caso de ejecución de obras, se deberán de incorporar tres presupuestos solicitados y argumentar el motivo de la adjudicación en el caso de no ser la propuesta más ventajosa económicamente."]
[" 10. No serán elegibles facturas de empresas emitidas entre las organizaciones participantes del acuerdo de colaboración."]
[" 11. En ningún caso se considerarán gastos subvencionables:\n> Los impuestos indirectos cuando sean susceptibles de recuperación o compensación.\n> Los gastos de inversión, incluídas las adquisiciones de bienes muebles.\n> Los gastos realizados con fecha anterior al inicio del proyecto y fecha posterior a la finalización del proyecto.\n> Otros gastos que se indiquen en la convocatoria."]
[" 12. La retribución de las personas contratadas en el marco del proyecto subvencionado no puede ser inferior al Salario Mínimo Interprofesional (SMI), ni a la estipulada al correspondiente convenio o marco normativo de referencia (punto 7 de las bases 2025: requisitos de los proyectos). "]
[" 13. Los materiales producidos de difusión, estudios, informes o materiales didácticos utilizados, etc. en el caso de tratarse de gasto elegible de la subvención, deberán tener licencia Creative Commons -Compartir Igual- (share a like) y no podrá tener la condición –Sin Obras Derivadas- (no derivate Works)."]
[" 14. Los proyectos subvencionados deben fomentar actividades de interés público o social, las cuales deben ser gratuitas para las personas participantes o en ningún caso el precio debe suponer un obstáculo para su participación, buscando otras formas de acceso para personas con dificultades económicas. En el caso que haya algún tipo de lucro, deberán revertir en las propias actividades subvencionadas."]
[" 15. El Ayuntamiento de Barcelona y sus entidades municipales en ningún caso subvencionarán el mismo proyecto, ejecutado durante el mismo periodo, por ningún otro procedimiento de concesión que no sea el regulado por las bases reguladoras."]
[" 16. El/la beneficiario/a no podrá alterar en ningún caso el destino de las subvenciones concedidas."]
[" 17. La organización designada como representante de la agrupación será plenamente responsable del proyecto ante el Ayuntamiento respecto al cumplimiento de las obligaciones establecidas en las bases reguladoras, sin perjuicio de la responsabilidad de las otras organizaciones socias de la agrupación, siendo de aplicación los requisitos previstos en el punto 6.1 de las bases reguladoras."]
[" 18. En ningún caso podrán formar parte de la agrupación las organizaciones que hayan recibido otras subvenciones para la ejecución del mismo proyecto de otras administraciones públicas."]
[" 19. El programa de prácticas del alumnado debe ser de una duración mínima de 400 horas o superior."]
[" 20. Sólo puede presentarse una solicitud para un lugar de prácticas por organización solicitante."]
[" 21. Se remunerará al alumno/a en prácticas universitarias (curriculares o extracurriculares) con un coste bruto por hora mínimo de 6 €/hora o superior."]
[" 22. Se remunerará al alumno/a según la modalidad de FP dual escogida como mínimo de acuerdo con la normativa específica establecida por el Departamento de Educación de la Generalitat de Catalunya o superior."]
[" 23. Sólo se aceptarán, como gastos subvencionables vinculados a la participación en reuniones de trabajo y formaciones, la imputación de costes de personal y gastos de traslados sólo con transportes públicos imputables a las actividades del proyecto subvencionable (con un límite del 7% de la subvención) y no otras compensaciones dinerarias o dietas"]